bitfinex-derivatives/quotes_BTCF0:USTF0_20230701
["timestamp","ask_amount","ask_price","bid_price","bid_amount"]
[1688196620858,0.6931215,30451.0,30450.0,0.01971]
[1688196621863,0.71135119,30451.0,30450.0,0.01971]
[1688196622567,0.6931215,30451.0,30450.0,0.01971]
[1688196623670,0.79167275,30451.0,30450.0,0.03855945]
[1688196625362,0.80989452,30451.0,30450.0,0.01971]
[1688196627871,0.79166483,30451.0,30450.0,0.01971]
[1688196628263,0.6931215,30451.0,30450.0,0.01971]
[1688196628458,0.6931215,30451.0,30450.0,0.03855945]
[1688196628665,0.79166483,30451.0,30450.0,0.03855945]
[1688196628865,0.6931215,30451.0,30450.0,0.03855945]
[1688196630976,0.75880778,30451.0,30450.0,0.03855945]
[1688196631576,0.75880864,30451.0,30450.0,0.01971]
[1688196632371,0.75880854,30451.0,30450.0,0.01971]
[1688196634977,0.75880854,30451.0,30450.0,0.37211]
[1688196635666,0.75880854,30451.0,30450.0,0.40918914]
[1688196636066,0.3682115,30451.0,30450.0,0.62664092]
[1688196636273,0.0130115,30451.0,30450.0,0.62944092]
[1688196643380,0.08539504,30453.0,30451.0,0.01288677]
[1688196643573,0.08539504,30453.0,30452.0,0.734208]
[1688196643884,0.06568704,30453.0,30452.0,1.057008]
[1688196644193,0.06568704,30453.0,30452.0,1.09408714]
[1688196645487,0.08539504,30453.0,30452.0,1.09408714]
[1688196645684,0.06568704,30453.0,30452.0,1.09408714]
[1688196646484,0.08539504,30453.0,30452.0,1.09408714]
[1688196647786,0.06568704,30453.0,30452.0,1.09408714]
[1688196648195,0.09244297,30454.0,30452.0,1.09408714]
[1688196648491,0.06568704,30454.0,30453.0,0.41198714]
[1688196650195,0.06568704,30454.0,30453.0,0.77278714]
[1688196650574,0.08539404,30454.0,30453.0,0.77278714]
[1688196650978,0.09196721,30454.0,30453.0,0.77278714]
[1688196652083,0.07226021,30454.0,30453.0,0.77278714]
[1688196653294,0.00657317,30454.0,30453.0,0.77278714]
[1688196655089,0.09194582,30455.0,30454.0,0.03707914]
[1688196655296,0.09194582,30455.0,30454.0,0.41198614]
[1688196658880,0.02625878,30455.0,30454.0,0.77278614]
[1688196659090,0.39218561,30456.0,30454.0,0.77278614]
[1688196659394,0.39218561,30456.0,30455.0,0.39217914]
[1688196659589,0.39218561,30456.0,30455.0,0.74098514]
[1688196659792,0.37247961,30456.0,30455.0,0.74098514]
[1688196661987,0.3984463,30456.0,30455.0,0.74098514]
[1688196662592,0.40255353,30456.0,30455.0,0.74098514]
[1688196662786,0.42225953,30456.0,30455.0,0.74098514]
[1688196664696,0.03056649,30456.0,30455.0,0.79538065]
[1688196664993,0.0353996,30456.0,30455.0,0.79538065]
[1688196665296,0.0353996,30456.0,30455.0,0.92657785]
[1688196666594,0.0353996,30456.0,30455.0,0.79538065]
[1688196668989,0.0353996,30456.0,30455.0,1.14399086]
[1688196669402,0.0353996,30456.0,30455.0,0.74098514]
[1688196678398,0.0353996,30456.0,30455.0,0.83925661]
[1688196679396,0.0353996,30456.0,30455.0,0.74098514]
[1688196680393,0.0353996,30456.0,30455.0,0.83925887]
[1688196680597,0.00943291,30456.0,30455.0,0.83925887]
[1688196681103,0.00943291,30456.0,30455.0,0.74098514]
[1688196681898,0.00943291,30456.0,30455.0,1.10178514]
[1688196683005,0.00943291,30456.0,30455.0,0.74098514]
[1688196683305,0.00943291,30456.0,30455.0,1.10178514]
[1688196693023,0.00943291,30456.0,30455.0,1.23298234]
[1688196693225,0.00943291,30456.0,30455.0,1.08960141]
[1688196693428,0.00943291,30456.0,30455.0,1.45040141]
[1688196694428,0.00943291,30456.0,30455.0,1.31920421]
[1688196694825,0.00943291,30456.0,30455.0,1.28212507]
[1688196695022,0.00943291,30456.0,30455.0,1.08411542]
[1688196696733,0.00718543,30456.0,30455.0,1.08411542]
[1688196696934,0.00718543,30456.0,30455.0,1.10234511]
[1688196697228,0.00718543,30456.0,30455.0,1.10296487]
[1688196697436,0.00718543,30456.0,30455.0,0.97187452]
[1688196699733,0.00718543,30456.0,30455.0,0.99010421]
[1688196701439,0.00951683,30456.0,30455.0,0.99010421]
[1688196703335,0.00951683,30456.0,30455.0,1.13606253]
[1688196703530,0.00951683,30456.0,30455.0,1.15429222]
[1688196710745,0.00951683,30456.0,30455.0,1.13606253]
[1688196711144,0.00951683,30456.0,30455.0,1.15429222]
[1688196711445,0.00610409,30456.0,30455.0,1.15429222]
[1688196715335,0.00610409,30456.0,30455.0,0.99010421]
[1688196720152,0.00610409,30456.0,30455.0,1.35090421]
[1688196727249,0.00610409,30456.0,30455.0,0.62930421]
[1688196727633,0.00610409,30456.0,30455.0,1.35090421]
[1688196729346,0.00610409,30456.0,30455.0,0.62930421]
[1688196729544,0.00610409,30456.0,30455.0,1.35090421]
[1688196730049,0.00610409,30456.0,30455.0,0.62930421]
[1688196730343,0.00610409,30456.0,30455.0,1.35090421]
[1688196731147,0.00469435,30456.0,30455.0,1.35090421]
[1688196734253,0.00331346,30456.0,30455.0,1.35090421]
[1688196743849,0.00049257,30456.0,30455.0,1.35090421]
[1688196744958,0.09251861,30459.0,30456.0,0.00030496]
[1688196745154,0.02683157,30459.0,30458.0,0.7159]
[1688196745459,0.4068717,30460.0,30458.0,0.95302307]
[1688196745655,0.43255999,30460.0,30459.0,0.70386163]
[1688196745856,0.36687295,30460.0,30459.0,0.50614656]
[1688196746857,0.36687295,30460.0,30459.0,0.374904]
[1688196747064,0.41285143,30460.0,30459.0,0.76061945]
[1688196749870,0.34716995,30460.0,30459.0,1.12141945]
[1688196750165,0.34716995,30460.0,30459.0,0.99017689]
[1688196750370,0.34716995,30460.0,30459.0,1.15423035]
[1688196750565,0.34716995,30460.0,30459.0,1.46543035]
[1688196750967,0.34716995,30460.0,30459.0,1.30137689]
[1688196752976,0.34716995,30460.0,30459.0,1.66217689]
[1688196753373,0.34716995,30460.0,30459.0,1.82623035]
[1688196756862,0.34716995,30460.0,30459.0,1.66217689]
[1688196757067,0.34716995,30460.0,30459.0,1.82623035]
[1688196758065,0.34716995,30460.0,30459.0,1.10463035]
[1688196758278,0.34716995,30460.0,30459.0,1.82623035]
[1688196758977,0.34716995,30460.0,30459.0,1.66217689]
[1688196759178,0.34716995,30460.0,30459.0,0.94057689]
[1688196759575,0.34716995,30460.0,30459.0,1.66217689]
[1688196761174,0.34716995,30460.0,30459.0,0.94057689]
[1688196761370,0.34716995,30460.0,30459.0,1.66217689]
[1688196761567,0.34716995,30460.0,30459.0,1.68906816]
[1688196761971,0.34716995,30460.0,30459.0,1.85312162]
[1688196762368,0.32148166,30460.0,30459.0,1.85312162]
[1688196762575,0.00018166,30460.0,30459.0,1.85312162]
[1688196763073,0.3095618,30463.0,30459.0,1.81604248]
[1688196763271,0.3095618,30463.0,30462.0,0.81179592]
[1688196763473,0.3095618,30463.0,30462.0,0.83149792]
[1688196763673,0.3095618,30463.0,30462.0,0.86857706]
[1688196765375,0.33581658,30463.0,30462.0,0.86857706]
[1688196765580,0.33581658,30463.0,30462.0,0.50777706]
[1688196765783,0.33581658,30463.0,30462.0,0.86857706]
[1688196773791,0.33581658,30463.0,30462.0,0.50777706]
[1688196773979,0.33581658,30463.0,30462.0,0.86857706]
[1688196775495,0.33581658,30463.0,30462.0,0.50777706]
[1688196775793,0.33581658,30463.0,30462.0,0.86857706]
[1688196777189,0.33581658,30463.0,30462.0,1.20137706]
[1688196778894,0.33581658,30463.0,30462.0,0.84057706]
[1688196779084,0.33581658,30463.0,30462.0,1.20137706]
[1688196781000,0.33581658,30463.0,30462.0,1.10308114]
[1688196786902,0.33581658,30463.0,30462.0,1.23414237]
[1688196788293,0.33581658,30463.0,30462.0,1.45150786]
[1688196788708,0.33581658,30463.0,30462.0,1.23414237]
[1688196788892,0.33581658,30463.0,30462.0,1.45150797]
[1688196792900,0.33581658,30463.0,30462.0,1.32044674]
[1688196796716,0.33581658,30463.0,30462.0,0.95964674]
[1688196796908,0.3095618,30463.0,30462.0,1.32044674]
[1688196798914,0.37524328,30463.0,30462.0,1.32044674]
[1688196800517,0.3095618,30463.0,30462.0,1.4845002]
[1688196802610,0.02618286,30464.0,30462.0,1.4845002]
[1688196802810,0.02618286,30464.0,30463.0,0.73661906]
[1688196803117,0.06568148,30465.0,30463.0,0.7933992]
[1688196803324,0.39197389,30466.0,30464.0,0.73511906]
[1688196803621,0.39197389,30466.0,30465.0,0.9529656]
[1688196803818,0.06617389,30466.0,30465.0,1.2748656]
[1688196804020,0.06617389,30466.0,30465.0,1.31194474]
[1688196804210,0.00049241,30466.0,30465.0,1.44309062]
[1688196804612,0.00049241,30466.0,30465.0,1.31194474]
[1688196808224,0.00049241,30466.0,30465.0,1.44303978]
[1688196808626,0.00049241,30466.0,30465.0,1.31194474]
[1688196810220,0.00049241,30466.0,30465.0,1.44301643]
[1688196811121,0.00049241,30466.0,30465.0,1.31194474]
[1688196813427,0.00049241,30466.0,30465.0,1.44298563]
[1688196813921,0.00049241,30466.0,30465.0,1.08218563]
[1688196814223,0.00049241,30466.0,30465.0,1.67274474]
[1688196815119,0.00049241,30466.0,30465.0,0.95114474]
[1688196815323,0.00049241,30466.0,30465.0,1.67274474]
[1688196815526,0.00748647,30466.0,30465.0,1.67274474]
[1688196818128,0.00748647,30466.0,30465.0,1.80372836]
[1688196818828,0.00748647,30466.0,30465.0,1.80372716]
[1688196819129,0.00748647,30466.0,30465.0,1.67274474]
[1688196819327,0.00748647,30466.0,30465.0,1.80372872]
[1688196820427,0.00748647,30466.0,30465.0,1.67274474]
[1688196821731,0.00748647,30466.0,30465.0,1.8367982]
[1688196821931,1.20088148,30471.0,30466.0,0.00463669]
[1688196822124,0.301,30470.0,30468.0,0.09821296]
[1688196822329,0.301,30470.0,30469.0,0.735697]
[1688196822835,0.37915676,30471.0,30469.0,0.77277614]
[1688196823033,0.37915676,30471.0,30470.0,0.41786658]
[1688196823221,0.68015676,30471.0,30470.0,0.47464272]
[1688196823421,0.68507211,30471.0,30470.0,0.47464272]
[1688196824230,0.68507211,30471.0,30470.0,0.40917614]
[1688196824830,0.33177211,30471.0,30470.0,0.47464272]
[1688196828332,0.33177211,30471.0,30470.0,0.40917614]
[1688196828937,0.33177211,30471.0,30470.0,0.47464272]
[1688196829335,0.33177211,30471.0,30470.0,0.40917614]
[1688196831939,0.33177211,30471.0,30470.0,0.76997614]
[1688196833128,0.33177211,30471.0,30470.0,0.83544272]
[1688196833839,0.22955426,30471.0,30470.0,0.83544272]
[1688196837135,0.25611062,30471.0,30470.0,0.83544272]
[1688196838536,0.25611062,30471.0,30470.0,0.8681891]
[1688196839342,0.25486666,30471.0,30470.0,0.8681891]
[1688196843434,0.25486666,30471.0,30470.0,0.76997614]
[1688196846245,0.25486666,30471.0,30470.0,0.90092675]
[1688196848152,0.25278375,30471.0,30470.0,1.11823073]
[1688196851542,0.25186101,30471.0,30470.0,1.11823073]
[1688196852034,0.24911236,30471.0,30470.0,1.11823073]
[1688196852232,0.26880936,30471.0,30470.0,0.3524]
[1688196852436,0.26880936,30471.0,30470.0,0.45098043]
[1688196852437,0.68969084,30471.0,30470.0,0.45098043]
[1688196852835,0.70792053,30471.0,30470.0,0.45098043]
[1688196853638,0.68969084,30471.0,30470.0,0.372397]
[1688196854544,0.70792053,30471.0,30470.0,0.372397]
[1688196854745,0.70792053,30471.0,30470.0,0.019697]
[1688196855757,0.62400936,30471.0,30470.0,0.019697]
[1688196856440,0.64223905,30471.0,30470.0,0.019697]
[1688196856752,0.70792053,30471.0,30470.0,0.019697]
[1688196857050,0.64223905,30471.0,30470.0,0.019697]
[1688196857253,0.70792053,30471.0,30470.0,0.019697]
[1688196857953,0.68969084,30471.0,30470.0,0.019697]
[1688196858855,0.62400936,30471.0,30470.0,0.36711196]
[1688196859650,0.62400936,30471.0,30470.0,0.34826251]
[1688196859847,0.62400936,30471.0,30470.0,0.36795951]
[1688196860544,0.68969084,30471.0,30470.0,0.36795951]
[1688196860961,0.62400936,30471.0,30470.0,0.36795951]
[1688196861248,0.70792053,30471.0,30470.0,0.34826251]
[1688196861455,0.69288164,30471.0,30470.0,0.34826251]
[1688196862862,0.69288164,30471.0,30470.0,0.36795951]
[1688196864761,0.71111133,30471.0,30470.0,0.36795951]
[1688196865152,0.69288164,30471.0,30470.0,0.36795951]
[1688196865458,0.71111133,30471.0,30470.0,0.36795951]
[1688196865662,0.69288164,30471.0,30470.0,0.36795951]
[1688196866362,0.68969084,30471.0,30470.0,0.36795951]
[1688196866563,0.70792053,30471.0,30470.0,0.34826251]
[1688196866762,1.10153943,30471.0,30470.0,0.09834862]
[1688196867060,1.00303905,30471.0,30470.0,0.09834862]
[1688196868955,1.1015378,30471.0,30470.0,0.09834862]
[1688196870467,0.7407378,30471.0,30469.0,0.15064861]
[1688196870655,0.44056174,30470.0,30469.0,0.16949806]
[1688196870855,0.45879143,30470.0,30469.0,0.36797101]
[1688196873078,0.44056174,30470.0,30469.0,0.36797101]
[1688196873275,0.45879143,30470.0,30469.0,0.36797101]
[1688196875379,0.44056174,30470.0,30469.0,0.36797101]
[1688196876578,0.45879143,30470.0,30469.0,0.36797101]
[1688196877472,0.44056174,30470.0,30469.0,0.36797101]
[1688196878377,0.45879143,30470.0,30469.0,0.2370204]
[1688196879379,0.44056174,30470.0,30469.0,0.2370204]
[1688196879571,0.45879143,30470.0,30469.0,0.2370204]
[1688196880081,0.44056174,30470.0,30469.0,0.25525009]
[1688196880271,0.44056174,30470.0,30469.0,0.25586985]
[1688196882175,0.44056174,30470.0,30469.0,0.3870005]
[1688196882374,0.44056174,30470.0,30469.0,0.25586985]
[1688196884969,0.45879143,30470.0,30469.0,0.2370204]
[1688196885385,0.45879143,30470.0,30469.0,0.3681564]
[1688196886782,0.45879143,30470.0,30469.0,0.3484584]
[1688196887784,0.44056174,30470.0,30469.0,0.36730785]
[1688196888173,0.44056174,30470.0,30469.0,0.3484584]
[1688196888485,0.39312669,30470.0,30469.0,0.3484584]
[1688196888681,0.374897,30470.0,30469.0,0.36730785]
[1688196890982,0.374897,30470.0,30469.0,0.38700585]
[1688196891196,0.374897,30470.0,30469.0,0.36730785]
[1688196893280,0.374897,30470.0,30469.0,0.38700585]
[1688196893686,0.39312669,30470.0,30469.0,0.38700585]
[1688196893888,0.374897,30470.0,30469.0,0.38700585]
[1688196894182,0.44056596,30470.0,30469.0,0.38700585]
[1688196898393,0.44056596,30470.0,30469.0,0.3681564]
[1688196898689,0.44056596,30470.0,30469.0,0.3484584]
[1688196900282,0.44056596,30470.0,30469.0,0.3681564]
[1688196900783,0.44056596,30470.0,30469.0,0.38700585]
[1688196900982,0.44056596,30470.0,30469.0,0.40523554]
[1688196901894,0.42086896,30470.0,30469.0,0.40523554]
[1688196902491,0.42086896,30470.0,30469.0,0.38700585]
[1688196902694,0.42086896,30470.0,30469.0,0.40523554]
[1688196903099,0.42086896,30470.0,30469.0,0.27409954]
[1688196903396,0.42086896,30470.0,30469.0,0.4052364]
[1688196904392,0.42086896,30470.0,30469.0,0.38700671]
[1688196904593,0.42086896,30470.0,30469.0,0.4052364]
[1688196904798,0.42086896,30470.0,30469.0,0.38700671]
[1688196905206,0.42086896,30470.0,30469.0,0.4052364]
[1688196906087,0.42086896,30470.0,30469.0,0.7603364]
[1688196906502,0.42086896,30470.0,30469.0,0.62919954]
[1688196908494,0.09222532,30471.0,30469.0,0.98999954]
[1688196908696,0.41816126,30473.0,30470.0,0.7719926]
[1688196908893,0.41816126,30473.0,30472.0,0.716]
[1688196909092,0.41816126,30473.0,30472.0,0.9530184]
[1688196909292,0.41816126,30473.0,30472.0,1.12120286]
[1688196910098,0.41816126,30473.0,30472.0,0.99009754]
[1688196910287,0.41816126,30473.0,30472.0,1.12115624]
[1688196911695,0.46386158,30473.0,30472.0,0.90383384]
[1688196912395,0.46386158,30473.0,30472.0,0.77277514]
[1688196914795,0.46386158,30473.0,30472.0,0.41757514]
[1688196916305,0.39819262,30473.0,30472.0,0.41757514]
[1688196917706,0.39819262,30473.0,30472.0,0.54863384]
[1688196918508,0.39819262,30473.0,30472.0,0.41757514]
[1688196918708,0.37849762,30473.0,30472.0,0.41757514]
[1688196921208,0.02649762,30473.0,30472.0,0.55136519]
[1688196921405,0.37849762,30473.0,30472.0,0.54863384]
[1688196922310,0.37849762,30473.0,30472.0,0.42031068]
[1688196927718,0.39819262,30473.0,30472.0,0.40208099]
[1688196928316,0.39819262,30473.0,30472.0,0.42031068]
[1688196929012,0.39819262,30473.0,30472.0,0.40208099]
[1688196929218,0.39819262,30473.0,30472.0,0.42031068]
[1688196930918,0.39819262,30473.0,30472.0,0.05951068]
[1688196931319,0.39819262,30473.0,30472.0,0.42100347]
[1688196932510,0.39855861,30473.0,30472.0,0.42100347]
[1688196934018,0.39855861,30473.0,30472.0,0.06020347]
[1688196934214,0.39855861,30473.0,30472.0,0.42100347]
[1688196938122,0.39855861,30473.0,30472.0,0.55206217]
[1688196938425,0.37886361,30473.0,30472.0,0.55206217]
[1688196939725,0.37886361,30473.0,30472.0,0.7693527]
[1688196939923,0.37886361,30473.0,30472.0,0.55206217]
[1688196940327,0.37886361,30473.0,30472.0,0.76935343]
[1688196940721,0.37886361,30473.0,30472.0,0.55206217]
[1688196940923,0.37886361,30473.0,30472.0,0.42100347]
[1688196942119,0.37886361,30473.0,30472.0,0.42187916]
[1688196942320,0.37886361,30473.0,30472.0,0.55293786]
[1688196944428,0.37886361,30473.0,30472.0,0.77022849]
[1688196944929,0.37886361,30473.0,30472.0,0.40942849]
[1688196945133,0.37886361,30473.0,30472.0,0.77022849]
[1688196946131,0.37886361,30473.0,30472.0,0.40364947]
[1688196946429,0.39855861,30473.0,30472.0,0.40364947]
[1688196947331,0.39855861,30473.0,30472.0,0.42187916]
[1688196947629,0.39855861,30473.0,30472.0,0.55293786]
[1688196947828,0.39855861,30473.0,30472.0,0.42187916]
[1688196948535,0.39855861,30473.0,30472.0,0.7702329]
[1688196951734,0.37886361,30473.0,30472.0,0.7702329]
[1688196952433,0.37886361,30473.0,30472.0,0.6391742]
[1688196953730,0.37886361,30473.0,30472.0,0.2783742]
[1688196953930,0.37886361,30473.0,30472.0,0.6391742]
[1688196954433,0.44453257,30473.0,30472.0,0.80305311]
[1688196955935,0.44453257,30473.0,30472.0,0.80414106]
[1688196956138,0.44453257,30473.0,30472.0,0.64026215]
[1688196959651,0.44453257,30473.0,30472.0,0.80414106]
[1688196960442,0.44453257,30473.0,30472.0,0.78591137]
[1688196960650,0.44453257,30473.0,30472.0,0.62203246]
[1688196960844,0.46422757,30473.0,30472.0,0.62203246]
[1688196961036,0.46422757,30473.0,30472.0,0.60318301]
[1688196961950,0.46422757,30473.0,30472.0,0.64026215]
[1688196962350,0.39855861,30473.0,30472.0,0.64026215]
[1688196962551,0.46424267,30473.0,30472.0,0.64026215]
[1688196962846,0.39855861,30473.0,30472.0,0.13655147]
[1688196963050,0.49707555,30473.0,30472.0,0.13655147]
[1688196963247,0.51530524,30473.0,30472.0,0.00539197]
[1688196963450,0.51530524,30473.0,30471.0,0.1311595]
[1688196963647,0.14507555,30473.0,30472.0,0.35447033]
[1688196963847,0.49677555,30473.0,30472.0,0.35447033]
[1688196964053,0.51500524,30473.0,30472.0,0.35447033]
[1688196965343,0.51500524,30473.0,30472.0,0.37416633]
[1688196965543,0.49677555,30473.0,30472.0,0.37416633]
[1688196966350,0.39825861,30473.0,30472.0,0.37416633]
[1688196967543,0.4164883,30473.0,30472.0,0.37416633]
[1688196967952,0.48215767,30473.0,30472.0,0.37416633]
[1688196968155,0.39825861,30473.0,30472.0,0.37416633]
[1688196968461,0.46392805,30473.0,30472.0,0.37416633]
[1688196970145,0.39825861,30473.0,30472.0,0.37416633]
[1688196971156,0.39739515,30473.0,30472.0,0.37416633]
[1688196971656,0.46306235,30473.0,30472.0,0.37416633]
[1688196972158,0.46306235,30473.0,30472.0,0.39239602]
[1688196972550,0.46306235,30473.0,30472.0,0.41124547]
[1688196973049,0.46306235,30473.0,30472.0,0.39301578]
[1688196973562,0.39739515,30473.0,30472.0,0.39301578]
[1688196973756,0.46306189,30473.0,30472.0,0.39301578]
[1688196974059,0.46306189,30473.0,30472.0,0.41124547]
[1688196974856,0.44336689,30473.0,30472.0,0.41124547]
[1688196975858,0.46306189,30473.0,30472.0,0.41124547]
[1688196976470,0.44336689,30473.0,30472.0,0.41124547]
[1688196977768,0.44336689,30473.0,30472.0,0.77204547]
[1688196978080,0.44336689,30473.0,30472.0,0.64088597]
[1688196979374,0.44336689,30473.0,30472.0,0.63488158]
[1688196979674,0.44336689,30473.0,30472.0,0.76599523]
[1688196980374,0.48129158,30473.0,30472.0,0.73276221]
[1688196980573,0.41562484,30473.0,30472.0,0.73276221]
[1688196980873,0.39739515,30473.0,30472.0,0.73276221]
[1688196981867,0.39739515,30473.0,30472.0,0.7509919]
[1688196982459,0.39739515,30473.0,30472.0,0.76984135]
[1688196982775,0.39739515,30473.0,30472.0,0.75161166]
[1688196983276,0.46306082,30473.0,30472.0,0.76984135]
[1688196983474,0.39739515,30473.0,30472.0,0.76984135]
[1688196984677,0.46306121,30473.0,30472.0,0.76984135]
[1688196985377,0.46306121,30473.0,30472.0,0.75161166]
[1688196985874,0.46306121,30473.0,30472.0,0.71306621]
[1688196986674,0.46306121,30473.0,30472.0,0.75161166]
[1688196987181,0.46306121,30473.0,30472.0,0.76984135]
[1688196987372,0.46306121,30473.0,30472.0,0.6387277]
[1688196987565,0.44336621,30473.0,30472.0,0.6387277]
[1688196999686,0.44336621,30473.0,30472.0,0.63488158]
[1688197000477,0.37770015,30473.0,30472.0,0.63488158]
[1688197001081,0.37770015,30473.0,30472.0,0.79876049]
[1688197004090,0.37770015,30473.0,30472.0,0.59780244]
[1688197005783,0.39739515,30473.0,30472.0,0.59780244]
[1688197005996,0.39739515,30473.0,30472.0,0.63488158]
[1688197008584,0.46306121,30473.0,30472.0,0.63488158]
[1688197008783,0.46306121,30473.0,30472.0,0.59780244]
[1688197008993,0.4812909,30473.0,30472.0,0.59780244]
[1688197009396,0.46306121,30473.0,30472.0,0.59780244]
[1688197011791,0.4812909,30473.0,30472.0,0.59780244]
[1688197011992,0.46306121,30473.0,30472.0,0.59780244]
[1688197013897,0.46306121,30473.0,30472.0,0.62421924]
[1688197014402,0.46306121,30473.0,30472.0,0.60598955]
[1688197014800,0.46306121,30473.0,30472.0,0.24518955]
[1688197018101,0.4812909,30473.0,30472.0,0.24518955]
[1688197018599,0.46306121,30473.0,30472.0,0.24518955]
[1688197025501,0.46306121,30473.0,30472.0,0.264039]
[1688197026307,0.46306121,30473.0,30472.0,0.24518955]
[1688197026894,0.4812909,30473.0,30472.0,0.24518955]
[1688197028403,0.46306121,30473.0,30472.0,0.24518955]
[1688197028609,0.4812909,30473.0,30472.0,0.40906846]
[1688197029004,0.4812909,30473.0,30472.0,0.24518955]
[1688197029314,0.46306121,30473.0,30472.0,0.24518955]
[1688197030210,0.46306121,30473.0,30472.0,0.40906846]
[1688197031209,0.46306121,30473.0,30472.0,0.24518955]
[1688197032312,0.46306121,30473.0,30472.0,0.42791791]
[1688197034410,0.46306121,30473.0,30472.0,0.40906846]
[1688197035214,0.46306121,30473.0,30472.0,0.42791791]
[1688197035911,0.44336621,30473.0,30472.0,0.4461476]
[1688197036310,0.44336621,30473.0,30472.0,0.42791791]
[1688197036510,0.44336621,30473.0,30472.0,0.4461476]
[1688197037905,0.44336621,30473.0,30472.0,0.42791791]
[1688197038514,0.44336621,30473.0,30472.0,0.40906846]
[1688197038821,0.46306121,30473.0,30472.0,0.40906846]
[1688197039013,0.4812909,30473.0,30472.0,0.40906846]
[1688197039315,0.46306121,30473.0,30472.0,0.40906846]
[1688197042016,0.44336621,30473.0,30472.0,0.40906846]
[1688197042210,0.44336621,30473.0,30472.0,0.4461476]
[1688197042418,0.44336621,30473.0,30472.0,0.44819887]
[1688197042919,0.37770015,30473.0,30472.0,0.44819887]
[1688197043316,0.44336621,30473.0,30472.0,0.44819887]
[1688197044218,0.44336621,30473.0,30472.0,0.80899887]
[1688197044521,0.37770015,30473.0,30472.0,0.80899887]
[1688197046225,0.44336621,30473.0,30472.0,0.80899887]
[1688197048218,0.44336621,30473.0,30472.0,0.79076918]
[1688197048419,0.44336621,30473.0,30472.0,0.79014942]
[1688197049223,0.44336621,30473.0,30472.0,0.42934942]
[1688197049418,0.44336621,30473.0,30472.0,0.79014942]
[1688197049924,0.44336621,30473.0,30472.0,0.80899887]
[1688197050530,0.44336621,30473.0,30472.0,0.77191973]
[1688197050825,0.46306121,30473.0,30472.0,0.79014942]
[1688197051026,0.46306121,30473.0,30472.0,0.77191973]
[1688197051229,0.46306121,30473.0,30472.0,0.79014942]
[1688197053032,0.46306121,30473.0,30472.0,0.77191973]
[1688197053919,0.46306121,30473.0,30472.0,0.58834482]
[1688197054430,0.4812909,30473.0,30472.0,0.58834482]
[1688197055720,0.41562484,30473.0,30472.0,0.58834482]
[1688197058630,0.39739515,30473.0,30472.0,0.58834482]
[1688197058834,0.39739515,30473.0,30472.0,0.60804082]
[1688197059030,0.39739515,30473.0,30472.0,0.24724082]
[1688197059232,0.41562484,30473.0,30472.0,0.24724082]
[1688197059428,0.39739515,30473.0,30472.0,0.24724082]
[1688197059628,0.46302664,30473.0,30472.0,0.24724082]
[1688197060934,0.48125633,30473.0,30472.0,0.24724082]
[1688197061325,0.46302664,30473.0,30472.0,0.24724082]
[1688197061525,0.48125633,30473.0,30472.0,0.24724082]
[1688197061835,0.46302664,30473.0,30472.0,0.24724082]
[1688197062734,0.46302664,30473.0,30472.0,0.22754482]
[1688197063141,0.13692866,30473.0,30472.0,0.24577451]
[1688197063432,0.4407915,30473.0,30472.0,0.24577451]
[1688197063835,0.4407915,30473.0,30472.0,0.22754482]
[1688197064040,0.4407915,30473.0,30472.0,0.24577451]
[1688197064737,0.4407915,30473.0,30472.0,0.22754482]
[1688197065323,0.45902119,30473.0,30472.0,0.22754482]
[1688197065522,0.4407915,30473.0,30472.0,0.22754482]
[1688197066535,0.46647741,30473.0,30472.0,0.22754482]
[1688197067339,0.46647741,30473.0,30472.0,0.24577451]
[1688197067533,0.46647741,30473.0,30472.0,0.22754482]
[1688197068037,0.46647741,30473.0,30472.0,0.24577451]
[1688197068540,0.46647741,30473.0,30472.0,0.22754482]
[1688197069838,0.46647741,30473.0,30472.0,0.24577451]
[1688197070041,0.46647741,30473.0,30472.0,0.22754482]
[1688197070437,0.46647741,30473.0,30472.0,0.24577451]
[1688197070833,0.46647741,30473.0,30472.0,0.22754482]
[1688197072241,0.46647741,30473.0,30472.0,0.24577451]
[1688197072435,0.46647741,30473.0,30472.0,0.26547051]
[1688197072636,0.46647741,30473.0,30472.0,0.24724082]
[1688197073550,0.46647741,30473.0,30472.0,0.26547051]
[1688197074046,0.46647741,30473.0,30472.0,0.24724082]
[1688197074340,0.4847071,30473.0,30472.0,0.24724082]
[1688197074541,0.46647741,30473.0,30472.0,0.24724082]
[1688197075342,0.4847071,30473.0,30472.0,0.1187538]
[1688197075543,0.4847071,30473.0,30472.0,0.01023838]
[1688197075544,0.51759255,30473.0,30472.0,0.01023838]
[1688197076041,0.41907561,30473.0,30471.0,0.13134417]
[1688197076243,0.47184936,30472.0,30471.0,0.13134417]
[1688197076441,0.39338995,30472.0,30471.0,0.13134417]
[1688197078539,0.45898357,30472.0,30471.0,0.13972778]
[1688197082346,0.45898357,30472.0,30471.0,0.00838361]
[1688197083445,0.45898357,30472.0,30471.0,0.13972778]
[1688197083647,0.45898357,30472.0,30471.0,0.00838361]
[1688197091151,0.45898357,30472.0,30471.0,0.13972778]
[1688197093664,0.45898357,30472.0,30471.0,0.00838361]
[1688197094058,0.39338995,30472.0,30471.0,0.00838361]
[1688197094260,0.45897396,30472.0,30471.0,0.00838361]
[1688197094562,0.39338995,30472.0,30471.0,0.00838361]
[1688197096460,0.49180962,30472.0,30471.0,0.10684231]
[1688197096763,0.39338995,30472.0,30471.0,0.10684231]
[1688197097155,0.49180962,30472.0,30471.0,0.10684231]
[1688197097353,0.39338995,30472.0,30471.0,0.10684231]
[1688197099753,0.37516026,30472.0,30471.0,0.02723306]
[1688197099968,0.45897537,30472.0,30471.0,0.00838361]
[1688197100459,0.49180962,30472.0,30471.0,0.10684551]
[1688197103167,0.49180962,30472.0,30471.0,0.10895972]
[1688197108668,1.49180962,30472.0,30471.0,0.10895972]
[1688197108860,1.05,30471.0,30466.0,0.0984643]
[1688197109060,0.81436468,30468.0,30467.0,0.06564322]
[1688197109254,1.18606268,30468.0,30467.0,0.06564322]
[1688197109559,1.10620536,30468.0,30467.0,0.06564457]
[1688197110260,0.85807997,30468.0,30466.0,0.06564457]
[1688197110570,0.10936163,30467.0,30466.0,0.06564457]
[1688197110873,0.374899,30467.0,30465.0,0.47875981]
[1688197111056,0.0250832,30466.0,30465.0,0.44321375]
[1688197111261,0.0447832,30466.0,30465.0,0.4243643]
[1688197111457,0.30143956,30468.0,30465.0,0.4243643]
[1688197111663,0.30143956,30468.0,30467.0,0.06560852]
[1688197111862,1.01043956,30468.0,30467.0,0.06560852]
[1688197112067,0.68222723,30468.0,30467.0,0.06560852]
[1688197112262,0.74132623,30468.0,30466.0,0.06560852]
[1688197112471,0.02698679,30467.0,30466.0,0.13885348]
[1688197112662,0.04668579,30467.0,30466.0,0.06560852]
[1688197113061,0.019699,30467.0,30466.0,0.06560852]
[1688197113465,0.00026356,30467.0,30466.0,0.12000403]
[1688197113667,0.01996256,30467.0,30466.0,0.05439551]
[1688197113863,0.05280769,30470.0,30467.0,0.01822969]
[1688197114164,0.765999,30468.0,30467.0,0.06558882]
[1688197114474,0.49691537,30468.0,30466.0,0.11998433]
[1688197114668,0.3552,30467.0,30466.0,0.06558882]